bitfinex/quotes_ETHUSD_20241018
["timestamp","ask_amount","ask_price","bid_price","bid_amount"]
[1729262958821,3.78515,2641.9,2641.6,0.05676937]
[1729262959141,0.7616,2642.3,2641.6,0.05676937]
[1729262959321,3.78451,2642.4,2641.6,0.05676937]
[1729262959521,1.57827497,2642.6,2641.6,0.05676937]
[1729262959721,3.78456,2642.4,2641.7,0.7996]
[1729262959974,3.78467,2642.3,2641.7,0.7996]
[1729262960127,3.78467,2642.3,2641.6,0.05676937]
[1729262960128,3.7851,2642.0,2641.6,0.05676937]
[1729262960326,7.57023,2642.0,2641.6,0.05676937]
[1729262960550,1.168067,2642.2,2641.6,0.05676937]
[1729262960864,3.78517,2641.9,2641.6,0.05676937]
[1729262961172,0.55,2641.9,2641.6,0.05676937]
[1729262961353,0.433507,2641.8,2641.6,0.05676937]
[1729262961724,4.952907,2642.2,2641.6,0.05676937]
[1729262961961,3.78488,2642.1,2641.6,0.05676937]
[1729262962257,0.378467,2642.2,2641.6,0.05676937]
[1729262962474,4.163227,2642.2,2641.6,0.05676937]
[1729262962768,3.78489,2642.1,2641.6,0.05676937]
[1729262963059,0.4163357,2642.0,2641.6,0.05676937]
[1729262964383,3.78465,2642.3,2641.6,0.05676937]
[1729262965037,0.55,2642.4,2641.6,0.05676937]
[1729262965365,1.18301246,2642.6,2641.7,0.7639]
[1729262965366,4.57283497,2642.6,2641.7,0.7639]
[1729262965567,4.73832574,2642.5,2641.7,0.7639]
[1729262965862,0.95399574,2642.5,2641.7,0.7639]
[1729262966068,0.78867497,2642.7,2641.7,0.7639]
[1729262966224,3.78407,2642.7,2641.7,0.7639]
[1729262966420,4.57274497,2642.7,2641.7,0.7639]
[1729262966655,3.78407,2642.7,2641.7,0.7639]
[1729262967033,4.57274497,2642.7,2641.7,0.7639]
[1729262967236,5.5477991,2642.7,2641.7,0.7639]
[1729262967861,1.7637291,2642.7,2641.7,0.7639]
[1729262968673,5.5477991,2642.7,2641.7,0.7639]
[1729262969341,1.7637291,2642.7,2641.7,0.7639]
[1729262969842,0.51369075,2642.8,2641.7,0.7639]
[1729262970333,0.51369075,2642.8,2642.1,0.807]
[1729262970531,0.51369075,2642.8,2641.9,0.807]
[1729262970733,0.51369075,2642.8,2642.1,0.807]
[1729262971340,0.51369075,2642.8,2642.3,0.05675316]
[1729262971539,0.51369075,2642.8,2642.4,0.7502]
[1729262975984,0.51369075,2642.8,2642.5,0.8341837]
[1729262976149,0.51369075,2642.8,2642.5,0.7846]
[1729262976841,0.51369075,2642.8,2642.7,0.7633]
[1729262977155,0.51369075,2642.8,2642.7,0.83896877]
[1729262977359,0.51369075,2642.8,2642.7,0.7633]
[1729262981242,0.51369075,2642.8,2642.7,1.3347]
[1729262983045,0.51369075,2642.8,2642.7,0.7847]
[1729262986548,0.51369075,2642.8,2642.0,4.21790318]
[1729262986549,0.51369075,2642.8,2642.4,0.779]
[1729262987492,0.51369075,2642.8,2642.6,0.0567525]
[1729262987677,0.7823,2642.7,2642.6,0.0567525]
[1729262987992,0.51369075,2642.8,2642.6,0.0567525]
[1729262989486,0.51369075,2642.8,2642.7,0.7661]
[1729262992275,0.51369075,2642.8,2642.7,4.3581]
[1729262992597,0.51369075,2642.8,2642.7,1.3581]
[1729262994260,0.51369075,2642.8,2642.7,0.8081]
[1729262996466,0.51369075,2642.8,2642.6,0.0567525]
[1729263000365,0.51269208,2642.7,2642.6,0.0567525]
[1729263000762,0.51369075,2642.8,2642.6,0.0567525]
[1729263003978,0.51369075,2642.8,2642.7,1.3504]
[1729263006485,0.51369075,2642.8,2642.7,1.42586517]
[1729263006829,0.51369075,2642.8,2642.7,1.3504]
[1729263007710,0.02278026,2643.8,2643.1,0.55]
[1729263007911,0.7569,2644.3,2643.2,0.02903791]
[1729263008415,0.7569,2644.3,2643.4,0.55]
[1729263008600,0.7569,2644.3,2643.6,0.05672399]
[1729263012080,4.56961497,2644.9,2643.6,0.05672399]
[1729263012282,0.8081,2644.7,2643.7,0.8058]
[1729263012875,0.78867497,2645.0,2643.9,0.8058]
[1729263013006,1.31201526,2645.2,2643.9,0.8058]
[1729263013007,0.1290028,2645.2,2644.2,0.55]
[1729263013207,0.1290028,2645.2,2644.4,0.55]
[1729263013408,0.1290028,2645.2,2644.6,0.55]
[1729263013820,0.1290028,2645.2,2644.5,0.8058]
[1729263014645,0.1290028,2645.2,2644.7,0.05669044]
[1729263016654,4.7097328,2645.2,2644.7,0.05669044]
[1729263016833,0.47097328,2645.1,2644.7,0.05669044]
[1729263017036,0.1290028,2645.2,2644.7,0.84389044]
[1729263017236,0.1290028,2645.2,2644.7,4.62389044]
[1729263018165,0.1290028,2645.2,2644.7,0.84389044]
[1729263022957,0.1290028,2645.2,2644.9,3.0]
[1729263026640,0.1290028,2645.2,2644.8,3.78]
[1729263028585,0.1290028,2645.2,2644.7,0.84389044]
[1729263035094,0.1290028,2645.2,2644.7,0.05669044]
[1729263042598,0.9103028,2645.2,2644.7,0.05669044]
[1729263042762,0.1290028,2645.2,2644.7,0.05669044]
[1729263046572,0.7623,2645.1,2644.7,0.05669044]
[1729263046963,0.1290028,2645.2,2644.7,0.05669044]
[1729263052747,0.7763,2645.1,2644.7,0.05669044]
[1729263053360,0.7562,2644.9,2644.7,0.05669044]
[1729263056563,0.7562,2644.9,2643.9,3.0]
[1729263056737,0.7562,2644.9,2643.8,0.758]
[1729263058256,1.54487497,2644.9,2643.8,0.758]
[1729263058572,4.53369,2644.8,2643.8,0.758]
[1729263058779,0.7687,2644.6,2643.5,0.7893]
[1729263058940,0.7687,2644.6,2643.6,0.07564629]
[1729263059884,0.7687,2644.6,2643.7,1.04122032]
[1729263060057,0.7687,2644.6,2643.9,0.55]
[1729263060551,1.18301246,2645.1,2643.9,0.55]
[1729263060552,0.7523,2644.9,2644.0,0.03318397]
[1729263060747,0.7523,2644.9,2644.1,0.55]
[1729263060948,0.7523,2644.9,2644.2,0.03321356]
[1729263061261,0.7523,2644.9,2644.2,3.8188]
[1729263061465,0.7523,2644.9,2644.3,0.0756249]
[1729263062075,0.1290028,2645.2,2644.3,0.0756249]
[1729263062394,0.9067028,2645.2,2644.4,0.55]
[1729263062674,0.9067028,2645.2,2644.5,0.07561647]
[1729263063391,0.1290028,2645.2,2644.8,0.55]
[1729263063541,0.1290028,2645.2,2644.7,0.8188]
[1729263063742,0.1290028,2645.2,2644.4,1.2414661]
[1729263064060,0.1290028,2645.2,2644.1,3.0]
[1729263064061,0.7777,2645.1,2644.1,3.8188]
[1729263064393,0.1290028,2645.2,2644.7,0.55]
[1729263064605,0.1290028,2645.2,2644.9,0.05668748]
[1729263065708,0.1290028,2645.2,2645.0,0.07561053]
[1729263066020,0.1290028,2645.2,2644.9,0.05668748]
[1729263068908,0.7513,2645.1,2644.9,0.05668748]
[1729263070109,0.1290028,2645.2,2644.9,0.05668748]
[1729263070624,0.1290028,2645.2,2645.0,0.55]
[1729263070834,0.1290028,2645.2,2644.9,0.05668748]
[1729263070835,0.1290028,2645.2,2644.9,0.88978748]
[1729263070987,0.9333028,2645.2,2644.9,0.05668748]
[1729263071510,3.9095028,2645.2,2644.9,0.05668748]
[1729263071705,0.7863,2645.0,2644.9,0.05668748]
[1729263075788,4.56701,2645.0,2644.9,0.05668748]
[1729263075985,0.7863,2645.0,2644.9,0.05668748]
[1729263076284,1.57497497,2645.0,2644.9,0.05668748]
[1729263076913,4.56701,2645.0,2644.9,0.05668748]
[1729263077239,5.61182902,2645.0,2644.9,0.05668748]
[1729263077448,9.79484148,2645.0,2644.9,0.05668748]
[1729263078144,8.61182902,2645.0,2644.9,0.05668748]
[1729263078819,10.18917897,2645.0,2644.9,0.05668748]
[1729263079011,3.78143,2644.5,2643.5,0.8056]
[1729263079212,1.155143,2644.4,2643.5,0.8056]
[1729263079430,0.777,2644.4,2643.5,0.8056]
[1729263080904,0.777,2644.4,2643.6,0.54982017]
[1729263081100,0.777,2644.4,2643.5,0.8056]
[1729263082005,0.7901,2644.6,2643.6,0.60818782]
[1729263082204,0.7901,2644.6,2643.6,0.55]
[1729263084851,0.8261,2645.0,2643.9,1.3461]
[1729263086134,0.8261,2645.0,2643.9,0.7961]
[1729263086949,0.8261,2645.0,2643.9,0.87173717]
[1729263087152,0.8261,2645.0,2643.9,0.7961]
[1729263087812,0.46067,2644.9,2643.9,0.7961]
[1729263088012,0.8261,2645.0,2643.9,0.7961]
[1729263088217,0.8261,2645.0,2644.1,0.05671648]
[1729263090640,4.6069,2645.0,2644.1,0.05671648]
[1729263091025,0.8261,2645.0,2644.1,0.05671648]
[1729263092429,0.1290028,2645.2,2644.3,0.55]
[1729263092669,0.1290028,2645.2,2644.4,0.8006]
[1729263093233,0.59846108,2645.2,2644.6,0.05670466]
[1729263093441,0.7755,2645.1,2644.6,0.05670466]
[1729263098580,4.55611,2645.1,2644.6,0.05670466]
[1729263098874,0.7678,2644.6,2642.7,0.39301825]
[1729263099103,3.78204,2644.1,2642.9,0.8053]
[1729263099399,3.78252,2643.8,2642.9,0.8053]
[1729263099545,0.7814,2643.9,2642.9,0.8053]
[1729263099967,3.78244,2643.8,2642.9,0.8053]
[1729263100168,0.7814,2643.9,2642.9,0.8053]
[1729263100770,3.78259,2643.7,2642.9,0.8053]
[1729263101088,0.378259,2643.6,2642.9,3.8053]
[1729263101293,4.56378,2643.9,2642.9,0.8053]
[1729263101446,0.7814,2643.9,2642.9,3.8053]
[1729263102057,0.7814,2643.9,2642.9,0.8053]
[1729263102284,0.7814,2643.9,2642.9,3.8053]
[1729263102725,0.7814,2643.9,2642.9,0.8053]
[1729263102983,3.7826,2643.7,2642.9,0.8053]
[1729263103204,3.78295,2643.5,2642.7,0.8212]
[1729263104270,0.7599,2643.6,2642.7,0.8212]
[1729263104595,4.54262,2643.6,2642.7,0.8212]
[1729263104946,0.7599,2643.6,2642.7,0.8212]
[1729263105350,4.54263,2643.6,2642.7,0.8212]
[1729263105654,4.237193,2643.5,2642.7,0.8212]
[1729263105961,0.454263,2643.5,2642.7,0.8212]
[1729263106991,0.7599,2643.6,2642.7,0.8212]
[1729263108579,0.7599,2643.6,2642.9,0.05674399]
[1729263108853,0.4941824,2643.8,2642.9,0.05674399]
[1729263109083,1.2863824,2643.8,2642.9,0.05674399]
[1729263111355,5.0688124,2643.8,2642.9,0.05674399]
[1729263111555,0.80688124,2643.7,2642.9,0.05674399]
[1729263112558,4.58947124,2643.7,2642.9,0.05674399]
[1729263113286,3.78276,2643.6,2642.9,0.05674399]
[1729263113489,4.58947124,2643.7,2642.9,0.05674399]
[1729263113490,4.58952124,2643.7,2642.9,0.05674399]
[1729263113953,4.58950124,2643.7,2642.9,0.05674399]
[1729263114155,0.58758836,2643.6,2642.9,0.05674399]
[1729263114654,1.2863824,2643.8,2643.0,0.7778]
[1729263114854,5.0688124,2643.8,2643.0,0.7778]
[1729263115093,1.2863824,2643.8,2643.0,0.7778]
[1729263115655,5.0688924,2643.8,2643.0,0.7778]
[1729263115999,1.2863824,2643.8,2643.0,0.7778]
[1729263116352,0.50687124,2643.7,2643.0,0.7778]
[1729263116996,5.0688224,2643.8,2643.0,0.7778]
[1729263117190,1.2863824,2643.8,2643.0,0.7778]
[1729263117491,0.4941824,2643.8,2643.0,0.7778]
[1729263117758,0.8123,2644.3,2643.0,0.7778]
[1729263117916,0.8123,2644.3,2643.1,0.84693039]
[1729263118205,3.78153,2644.5,2643.1,0.84693039]
[1729263118206,0.7645,2644.6,2643.2,3.55]
[1729263118389,0.7645,2644.6,2643.3,0.8136]
[1729263118567,3.78151,2644.5,2643.3,0.8136]
[1729263118768,3.67800478,2644.3,2643.3,0.8136]
[1729263118982,4.54655,2644.1,2643.5,0.05672703]
[1729263119194,7.5647,2643.9,2643.5,0.05672703]
[1729263119397,4.44250478,2644.1,2643.5,0.05672703]
[1729263119398,4.54661,2644.1,2643.5,0.05672703]
[1729263119604,0.7645,2644.1,2643.5,0.05672703]
[1729263119805,4.54651,2644.1,2643.5,0.05672703]
[1729263120011,0.832845,2644.0,2643.5,0.05672703]
[1729263120503,1.219101,2644.4,2643.5,0.05672703]
[1729263120670,0.7992,2644.6,2643.6,0.7579]
[1729263121067,4.58051,2644.6,2643.6,0.7579]
[1729263121281,3.782,2644.2,2643.6,0.7579]
[1729263121606,4.53461,2644.1,2643.5,0.05672703]
[1729263121812,3.78215,2644.0,2643.5,0.05672703]
[1729263121972,0.831676,2643.9,2643.5,0.05672703]
[1729263122478,4.614046,2643.9,2643.5,0.05672703]
[1729263122864,0.831676,2643.9,2643.5,0.05672703]
[1729263123505,4.613996,2643.9,2643.5,0.05672703]
[1729263123710,3.78244,2643.8,2643.1,0.7653]
[1729263124024,0.4614116,2643.7,2643.1,0.7653]
[1729263124321,0.7525,2644.1,2643.1,0.7653]
[1729263125194,0.7525,2644.1,2643.3,0.05673421]
[1729263125195,3.78221,2644.0,2643.3,0.05673421]
[1729263125400,3.78231,2643.9,2643.3,0.05673421]
[1729263125894,4.53464,2644.1,2643.3,0.05673421]
[1729263126115,3.78223,2644.0,2643.3,0.05673421]
[1729263126317,0.831687,2643.9,2643.3,0.05673421]
[1729263126673,3.7818,2644.3,2643.4,0.7612]
[1729263127315,0.7589,2644.4,2643.4,0.7612]
[1729263127517,0.7589,2644.6,2643.4,0.7612]
[1729263127669,4.5402,2644.6,2643.4,0.7612]
[1729263128016,3.7815,2644.5,2643.4,0.7612]
[1729263128309,0.83217,2644.4,2643.4,0.7612]
[1729263128474,3.78182,2644.3,2643.4,0.7612]
[1729263128672,3.78171,2644.3,2643.4,0.7612]
[1729263128879,3.78173,2644.3,2643.4,0.7612]
[1729263129902,4.61387,2644.4,2643.4,0.7612]
[1729263130102,0.461387,2644.3,2643.4,0.7612]
[1729263130287,3.78166,2644.4,2643.4,0.7612]
[1729263130840,3.78172,2644.3,2643.4,0.7612]
[1729263131814,3.78166,2644.4,2643.4,0.7612]
[1729263132726,3.78173,2644.3,2643.4,0.7612]
[1729263132935,3.78186,2644.2,2643.4,0.7612]
[1729263133095,0.378186,2644.1,2643.4,0.7612]
[1729263133725,4.160246,2644.1,2643.4,0.7612]
[1729263134387,1.195186,2644.1,2643.4,0.7612]
[1729263134624,4.977236,2644.1,2643.4,0.7612]
[1729263134801,0.378186,2644.1,2643.4,0.7612]
[1729263135186,3.7815,2644.5,2643.4,0.7612]
[1729263135438,1.62149838,2644.7,2643.4,0.7612]
[1729263135634,4.56985838,2644.9,2643.4,0.7612]
[1729263135796,0.78899838,2644.8,2643.6,0.7841]
[1729263136131,3.78101,2644.8,2643.6,0.7841]
[1729263136344,4.23815084,2644.7,2643.6,0.7841]
[1729263136515,0.45700084,2644.7,2643.6,0.7841]
[1729263136725,0.78899838,2644.9,2643.9,0.8321]
[1729263136726,3.7811,2644.8,2643.9,0.8321]
[1729263136899,0.78899838,2644.9,2643.9,0.8321]
[1729263137096,3.78093,2644.9,2643.9,0.8321]
[1729263137337,4.62149838,2645.0,2643.9,0.8321]
[1729263137635,0.78899838,2645.0,2643.9,0.8321]
[1729263137792,3.78171,2644.3,2643.8,0.05671689]
[1729263137995,3.67800478,2644.0,2643.6,0.2105327]
[1729263138194,4.57085838,2644.2,2641.3,3.26892629]
[1729263138424,4.57085838,2644.2,2642.0,3.78]
[1729263138425,0.78899838,2644.2,2642.0,3.78]
[1729263138645,4.57071838,2644.3,2642.2,0.05673227]
[1729263138934,1.0289236,2644.2,2642.2,0.05673227]
[1729263139097,4.8108636,2644.2,2642.2,0.05673227]
[1729263139300,5.59986198,2644.2,2642.2,0.05673227]
[1729263139501,5.59986198,2644.2,2642.3,0.55]
[1729263139735,3.78201,2644.1,2642.3,0.55]
[1729263140036,0.5599932,2644.0,2642.3,0.55]
[1729263140246,1.81792198,2644.2,2642.5,0.55]
[1729263140538,4.57051838,2644.5,2642.5,0.55]
[1729263140898,0.78899838,2644.5,2642.5,0.55]
[1729263141094,0.78899838,2644.5,2642.6,0.1227]
[1729263141319,0.78899838,2644.6,2642.5,1.29106704]
[1729263141531,0.78899838,2644.6,2642.9,0.1227]
[1729263141741,0.78899838,2644.8,2643.5,0.55]
[1729263141906,0.78899838,2644.8,2643.4,0.1227]
[1729263142115,0.78899838,2644.8,2643.5,0.1227]
[1729263142321,3.78124,2644.7,2643.7,0.1227]
[1729263142498,4.23844384,2644.6,2643.7,0.1227]
[1729263142696,5.02744222,2644.6,2643.7,0.1227]
[1729263143008,4.57042838,2644.5,2643.7,0.1227]
[1729263143541,0.78899838,2644.4,2643.7,0.1227]
[1729263143699,4.57044838,2644.5,2643.9,0.0567255]
[1729263143897,4.66246322,2644.4,2643.9,0.0567255]
[1729263144208,3.78178,2644.3,2643.9,0.0567255]
[1729263144420,0.88088322,2644.4,2643.9,0.0567255]
[1729263144620,1.6698816,2644.4,2643.9,0.0567255]
[1729263144828,5.4515816,2644.4,2643.9,0.0567255]
[1729263145006,1.4525063,2644.3,2643.9,0.0567255]
[1729263145612,0.66350792,2644.3,2643.9,0.0567255]
[1729263145843,0.78899838,2644.5,2644.0,0.1227]
[1729263146013,1.24602222,2644.6,2644.0,0.1227]
[1729263146921,0.78899838,2644.6,2644.0,0.1227]
[1729263147132,0.78899838,2644.7,2644.0,0.1227]
[1729263147331,0.78899838,2644.6,2644.0,0.1227]
[1729263147553,0.78899838,2644.7,2644.0,0.1227]
[1729263147702,0.78899838,2645.0,2644.0,0.1227]
[1729263147903,0.78899838,2644.9,2644.0,0.1227]
[1729263148159,4.56994838,2644.9,2644.0,0.1227]
[1729263148445,0.78899838,2644.9,2644.0,0.1227]
[1729263148616,1.53500493,2645.0,2644.0,0.1227]
[1729263149658,5.31575493,2645.0,2644.0,0.1227]
[1729263149950,1.39578373,2644.9,2644.0,0.1227]
[1729263150507,0.78899838,2645.1,2644.2,0.1227]
[1729263150873,0.91800118,2645.2,2644.5,0.1227]
[1729263151002,0.1290028,2645.2,2644.5,0.1227]
[1729263151202,0.1290028,2645.2,2644.7,0.0566904]
[1729263151407,0.1290028,2645.2,2644.8,0.1227]
[1729263153433,0.51993808,2645.2,2644.8,0.1227]
[1729263153950,3.78057,2645.1,2644.8,0.1227]
[1729263154157,4.30038808,2645.2,2644.7,0.0566904]
[1729263154158,3.781,2644.8,2644.7,0.0566904]
[1729263154512,3.78089,2644.9,2644.7,0.0566904]
[1729263154712,4.56613,2645.0,2644.7,0.0566904]
[1729263154958,0.456613,2644.9,2644.7,0.0566904]
[1729263155451,5.08946646,2645.2,2644.7,0.0566904]
[1729263155452,8.86999646,2645.2,2644.7,0.0566904]
[1729263155757,4.30046808,2645.2,2644.7,0.0566904]
[1729263155916,8.08098808,2645.2,2644.7,0.0566904]
[1729263156111,4.30045808,2645.2,2644.7,0.0566904]
[1729263156353,3.78063,2645.1,2644.7,0.0566904]
[1729263156655,0.80810881,2645.0,2644.7,0.0566904]
[1729263156856,3.78121,2644.7,2644.3,0.1227]
[1729263157043,3.78121,2644.7,2643.8,0.1227]
[1729263157243,3.78135,2644.6,2643.8,0.1227]
[1729263157623,3.78155,2644.5,2644.0,0.05672653]
[1729263157959,0.75629,2644.4,2644.0,0.05672653]
[1729263158129,3.78179,2644.3,2644.0,0.05672653]
[1729263158537,3.78224,2644.0,2643.4,0.1227]
[1729263158855,3.67800478,2644.3,2643.4,0.1227]
[1729263158856,3.78899838,2644.3,2643.4,0.1227]
[1729263159284,3.78186,2644.2,2643.4,0.1227]
[1729263159493,3.78228,2644.0,2643.4,0.1227]
[1729263159796,0.8325,2643.8,2642.5,0.1227]
[1729263159949,3.78291,2643.5,2642.5,0.1227]
[1729263160146,3.78266,2643.7,2642.5,0.1227]
[1729263160559,0.78899838,2643.7,2642.5,0.1227]
[1729263160887,4.32312384,2643.6,2642.5,0.1227]
[1729263161046,0.54040384,2643.6,2642.5,0.1227]
[1729263161389,0.54040384,2643.6,2642.5,3.1227]
[1729263161687,0.54040384,2643.6,2642.6,0.1227]
[1729263162776,5.40393838,2643.8,2642.6,0.1227]
[1729263163281,0.78899838,2643.7,2642.6,0.1227]
[1729263163483,3.78899838,2643.9,2642.6,0.1227]
[1729263163661,7.57128838,2643.9,2642.6,0.1227]
[1729263163843,2.04269098,2643.8,2642.6,0.1227]
[1729263164690,1.2536926,2643.8,2642.6,0.1227]
[1729263165484,1.2536926,2643.8,2642.4,0.1227]
[1729263165685,2.30358422,2644.1,2642.8,0.1227]
[1729263165894,1.54608422,2644.1,2643.0,0.1227]
[1729263166047,1.54608422,2644.1,2643.1,0.1227]
[1729263166962,0.78899838,2644.2,2643.1,0.1227]
[1729263167484,1.54528838,2644.4,2643.4,0.1227]
[1729263167654,0.78899838,2644.3,2643.4,0.1227]
[1729263168076,1.54528838,2644.4,2643.4,0.1227]
[1729263168696,0.75629,2644.4,2643.4,0.1227]
[1729263168856,1.18349757,2644.6,2643.3,0.05673392]
[1729263168857,0.78899838,2644.6,2643.6,0.1227]
[1729263169052,0.78899838,2644.6,2643.5,0.55]
[1729263169053,0.78899838,2644.8,2643.8,0.1227]
[1729263169595,0.78899838,2644.8,2644.0,0.05672794]
[1729263169893,0.78899838,2644.8,2644.1,0.1227]
[1729263170253,3.78899838,2644.8,2644.1,0.1227]
[1729263170451,0.78899838,2644.8,2644.1,0.1227]
[1729263170883,7.56986838,2644.9,2644.1,0.1227]
[1729263171085,0.9517566,2644.8,2644.1,0.1227]
[1729263171798,0.78899838,2644.9,2644.1,0.1227]
[1729263172101,3.78086,2644.9,2644.1,0.1227]
[1729263172306,4.56985838,2644.9,2644.1,0.1227]
[1729263172465,0.78899838,2644.9,2644.1,0.1227]
[1729263173610,0.78899838,2645.0,2644.1,0.1227]
[1729263173810,0.45695784,2644.9,2644.1,0.1227]
[1729263174107,0.91800118,2645.2,2644.2,3.55]
[1729263174315,0.1290028,2645.2,2644.4,0.1227]
[1729263174607,0.1290028,2645.2,2644.6,0.1227]
[1729263175970,0.1290028,2645.2,2644.9,0.1227]
[1729263179819,0.1290028,2645.2,2644.8,0.05670538]
[1729263180527,0.51993308,2645.2,2644.8,0.05670538]
[1729263181000,0.1290028,2645.2,2644.8,0.05670538]
[1729263181803,0.1290028,2645.2,2644.9,0.1227]
[1729263183030,0.1290028,2645.2,2644.8,0.05670538]
[1729263183031,4.7403128,2645.2,2644.8,0.05670538]
[1729263183393,0.9598028,2645.2,2644.8,0.05670538]
[1729263183739,7.45886478,2644.9,2644.8,0.05670538]
[1729263183903,13.1316611,2644.9,2644.8,0.05670538]
[1729263184110,13.1316611,2644.9,2643.8,0.1227]
[1729263184111,3.78194,2644.2,2643.8,0.1227]
[1729263184428,3.78194,2644.2,2642.2,0.06572285]
[1729263184429,3.78186,2644.2,2643.4,0.1227]
[1729263184732,3.78223,2644.0,2643.6,0.05673251]
[1729263185229,1.23256885,2644.2,2643.6,0.05673251]
[1729263185473,4.22574048,2644.2,2643.6,0.05673251]
[1729263185815,3.78257,2643.7,2643.6,0.05673251]
[1729263185993,3.78234,2643.9,2643.6,0.05673251]
[1729263186186,4.61783184,2643.8,2643.6,0.05673251]
[1729263186391,3.78257,2643.7,2643.6,0.05673251]
[1729263187636,10.46057478,2643.7,2643.6,0.05673251]
[1729263187931,11.24933315,2643.7,2643.6,0.05673251]
[1729263188096,10.46057478,2643.7,2643.6,0.05673251]
[1729263188300,1.6019058,2643.8,2643.6,0.05673251]
[1729263188543,4.59696117,2643.8,2643.6,0.05673251]
[1729263189606,0.81447117,2643.8,2643.6,0.05673251]
[1729263189930,3.7825,2643.8,2643.6,0.05673251]
[1729263190137,3.78257,2643.7,2643.6,0.05673251]
[1729263190466,3.78237,2643.9,2643.6,0.05673251]
[1729263190607,3.78251,2643.8,2643.6,0.05673251]
[1729263191543,3.78221,2644.0,2643.6,0.05673251]
[1729263191718,4.31793158,2643.9,2643.6,0.05673251]
[1729263191921,0.53563158,2643.9,2643.6,0.05673251]
[1729263192236,4.31793158,2643.9,2643.6,0.05673251]
[1729263192908,0.8194,2643.6,2641.9,0.1227]
[1729263193130,0.8194,2643.6,2641.8,0.02266526]
[1729263193131,7.56623,2643.4,2642.4,0.1227]
[1729263193368,0.756623,2643.3,2642.4,0.1227]
[1729263193674,3.78307,2643.4,2642.4,0.1227]
[1729263194025,3.78315,2643.3,2642.4,0.1227]
[1729263194227,3.78287,2643.5,2642.4,0.1227]
[1729263194525,3.78287,2643.5,2642.6,0.05675051]
[1729263195248,3.78286,2643.5,2642.6,0.05675051]
[1729263195461,4.621518,2643.4,2642.6,0.05675051]
[1729263196792,0.838508,2643.4,2642.6,0.05675051]
[1729263196998,0.838508,2643.4,2642.7,0.1227]
[1729263197372,4.34773158,2643.9,2642.7,0.1227]
[1729263197607,3.78251,2643.8,2642.7,0.1227]
[1729263197764,1.34773158,2643.9,2642.7,0.1227]
[1729263197765,4.34773158,2643.9,2642.7,0.1227]
[1729263198102,3.78258,2643.7,2642.7,0.1227]
[1729263198307,3.78251,2643.8,2642.7,0.1227]
[1729263198308,3.78272,2643.6,2642.7,0.1227]
[1729263198487,0.756523,2643.6,2642.7,0.1227]
[1729263198690,3.78259,2643.7,2642.7,0.1227]
[1729263198998,0.53563158,2643.9,2642.7,0.1227]
[1729263200378,0.8238,2644.4,2643.0,0.55]
[1729263200598,0.8238,2644.4,2643.3,0.1227]
[1729263200599,4.60545,2644.4,2643.3,0.1227]
[1729263200796,0.8238,2644.7,2643.3,0.1227]
[1729263201104,0.8238,2644.7,2643.5,0.1227]
[1729263201105,3.78121,2644.7,2643.5,0.1227]
[1729263201276,4.60477,2644.9,2643.8,0.1227]
[1729263201608,4.32043758,2644.8,2643.8,0.1227]
[1729263201765,0.53935758,2644.8,2643.8,0.1227]
[1729263203068,3.0,2645.1,2643.8,0.1227]
[1729263203270,3.0,2645.1,2644.0,0.1227]
[1729263203503,0.1290028,2645.2,2644.0,0.1227]
[1729263203901,3.9094528,2645.2,2644.0,0.1227]
[1729263204209,3.78064,2645.1,2644.2,0.0567186]
[1729263204405,4.54974928,2645.0,2644.2,0.0567186]
[1729263204613,4.54977928,2645.0,2644.2,0.0567186]
[1729263204779,0.76900928,2645.0,2644.2,0.0567186]
[1729263204972,0.76900928,2645.0,2644.3,0.1227]
[1729263205303,3.9094928,2645.2,2644.3,0.1227]
[1729263205705,3.9094428,2645.2,2644.3,0.1227]
[1729263206165,0.1290028,2645.2,2644.3,0.1227]
[1729263206567,3.78123,2644.7,2644.3,0.1227]
[1729263207564,3.78129,2644.6,2644.2,0.0567186]
[1729263207766,0.756252,2644.5,2644.2,0.0567186]
[1729263207980,4.5769,2644.8,2644.2,0.0567186]
[1729263208217,0.7958,2644.8,2644.2,0.0567186]
[1729263208511,3.78138,2644.6,2644.2,0.0567186]
[1729263208869,3.78114,2644.7,2644.2,0.0567186]
[1729263211279,3.78134,2644.6,2644.2,0.0567186]
[1729263211586,0.756248,2644.5,2644.2,0.0567186]
[1729263213318,8.3821858,2645.1,2644.2,0.0567186]
[1729263213526,6.78107,2644.8,2644.2,0.0567186]
[1729263213681,3.0,2644.8,2644.2,0.0567186]
[1729263213881,3.0,2644.9,2644.3,0.1227]
[1729263214227,1.056156,2644.8,2644.3,0.1227]
[1729263214921,3.78065,2645.1,2644.3,0.1227]
[1729263215284,6.9094528,2645.2,2644.3,0.1227]
[1729263215801,3.0,2645.1,2644.3,0.1227]
[1729263215985,3.9094428,2645.2,2644.3,0.1227]
[1729263216320,3.0,2645.1,2644.3,0.1227]
[1729263216493,0.31290028,2645.0,2644.3,0.1227]
[1729263216822,0.1290028,2645.2,2644.3,0.1227]
[1729263217032,0.1290028,2645.2,2644.4,0.1227]
[1729263217387,3.9094328,2645.2,2644.4,0.1227]
[1729263217896,3.78058,2645.1,2644.4,0.1227]
[1729263218102,3.9094928,2645.2,2644.4,0.1227]
[1729263218406,0.39094928,2645.1,2644.4,0.1227]
[1729263219025,4.17152928,2645.1,2644.4,0.1227]
[1729263219332,3.78079,2645.0,2644.4,0.1227]
[1729263219887,4.17153928,2645.1,2644.4,0.1227]
[1729263220089,4.57314,2645.0,2644.4,0.1227]
[1729263220295,3.78105,2644.8,2644.4,0.1227]
[1729263220491,4.64554045,2644.9,2644.4,0.1227]
[1729263220842,4.64554045,2644.9,2642.0,7.21683743]
[1729263220843,7.6628152,2644.5,2643.5,0.1227]
[1729263221130,3.78258,2643.7,2642.7,0.1227]
[1729263221305,3.78222,2644.0,2642.7,0.1227]
[1729263221485,0.74640352,2643.9,2642.7,0.1227]
[1729263221687,7.57427,2644.2,2642.7,0.1227]
[1729263221915,3.6818152,2644.1,2642.7,0.1227]
[1729263222341,3.78272,2643.6,2642.7,0.1227]
[1729263222515,7.4643352,2643.8,2642.7,0.1227]